fUST/lending_fUST_20240927
["ID","MTS","AMOUNT","RATE_DAILY","PERIOD"]
[339290437,1727441432886,-3000.0,0.0001626,2]
[339290438,1727441432895,-3000.0,0.0001627,2]
[339290439,1727441432905,-3000.0,0.0001628,2]
[339290440,1727441432914,-3000.0,0.0001629,2]
[339290441,1727441432924,-3000.0,0.000163,2]
[339290442,1727441432933,-718.88967964,0.000163,2]
[339290443,1727441432942,-3000.0,0.0001631,2]
[339290444,1727441432951,-8228.13348134,0.0001631,2]
[339290445,1727441432960,-2233.15727941,0.0001632,2]
[339290446,1727441432973,-436.33522896,0.0001632,2]
[339290468,1727441438547,-245.49541572,0.000162,2]
[339290469,1727441438556,-500.0,0.00016229,2]
[339290470,1727441438565,-500.0,0.00016229,2]
[339290471,1727441438575,-500.0,0.00016229,2]
[339290472,1727441438584,-500.0,0.00016229,2]
[339290473,1727441438593,-500.0,0.00016229,2]
[339290474,1727441438602,-415.55801696,0.00016229,2]
[339290475,1727441438611,-330.50749163,0.0001632,2]
[339290476,1727441438621,-3719.423714,0.0001633,2]
[339290477,1727441438631,-150.112241,0.000164,2]
[339290478,1727441438641,-166.666666,0.00016479,2]
[339290479,1727441438651,-832.57719553,0.00016621,2]
[339290480,1727441438661,-1000.0,0.00016621,2]
[339290481,1727441438674,-1002.95174599,0.00016621,2]
[339290482,1727441438689,-1000.0,0.00016621,2]
[339290483,1727441438698,-150.112233,0.000167,2]
[339290484,1727441438709,-246.0,0.000168,2]
[339290485,1727441438720,-166.666666,0.00016832,2]
[339290486,1727441438729,-718.8896796,0.00016995,2]
[339290487,1727441438739,-150.112233,0.00017,2]
[339290488,1727441438749,-150.112233,0.000173,2]
[339290489,1727441438758,-246.0,0.0001732,2]
[339290490,1727441438768,-1500.0,0.00017331,2]
[339290492,1727441438777,-1500.0,0.00017331,2]
[339290494,1727441438786,-420.0,0.00017565,2]
[339290496,1727441438795,-150.112233,0.000176,2]
[339290498,1727441438805,-420.0,0.00017673,2]
[339290500,1727441438814,-718.8896796,0.00017689,2]
[339290502,1727441438824,-246.0,0.0001785,2]
[339290504,1727441438834,-150.112233,0.000179,2]
[339290506,1727441438844,-150.112233,0.000179,2]
[339290508,1727441438853,-11857.07355434,0.00018,15]
[339290510,1727441438863,-165.87824154,0.0001812,2]
[339290513,1727441438872,-2000.0,0.0001812,2]
[339290515,1727441438884,-150.112233,0.000182,2]
[339290517,1727441438894,-150.112233,0.000182,2]
[339290519,1727441438903,-246.0,0.0001837,2]
[339290521,1727441438912,-718.8896796,0.00018384,2]
[339290522,1727441438923,-150.112233,0.000185,2]
[339290524,1727441438933,-3244.19453768,0.00018552,2]
[339290526,1727441438943,-150.112233,0.000186,2]
[339290529,1727441438954,-151.092,0.000186,3]
[339290531,1727441438964,-32912.5339254,0.00018642,2]
[339290533,1727441438974,-150.0,0.00018651,2]
[339290534,1727441438983,-7065.39639063,0.00018723,2]
[339290536,1727441438992,-150.112233,0.000188,2]
[339290538,1727441439001,-150.112233,0.000189,2]
[339290541,1727441439013,-246.0,0.000189,2]
[339290542,1727441439023,-164.062812,0.00018904,2]
[339290544,1727441439033,-289.14660709,0.00018965,2]
[339290546,1727441439043,-500.0,0.00018976,2]
[339290548,1727441439055,-500.0,0.00018976,2]
[339290550,1727441439065,-500.0,0.00018976,2]
[339290552,1727441439075,-500.0,0.00018976,2]
[339290554,1727441439084,-266.0,0.00018976,2]
[339290556,1727441439093,-153.0,0.00019041,2]
[339290558,1727441439103,-209.1919512,0.00019041,2]
[339290561,1727441439113,-153.0,0.00019041,2]
[339290563,1727441439124,-337.6866547,0.00019041,2]
[339290565,1727441439135,-153.0,0.00019041,2]
[339290567,1727441439146,-153.0,0.00019041,2]
[339290569,1727441439157,-153.0,0.00019041,2]
[339290571,1727441439166,-153.0,0.00019041,2]
[339290573,1727441439177,-153.0,0.00019041,2]
[339290575,1727441439188,-153.0,0.00019041,2]
[339290577,1727441439198,-306.0,0.00019041,2]
[339290579,1727441439208,-352.81122636,0.00019048,2]
[339290581,1727441439219,-718.8896796,0.00019078,2]
[339290583,1727441439228,-3848.0,0.00019078,2]
[339290585,1727441439238,-24684.400444,0.00019129,3]
[339290587,1727441439247,-8228.13348134,0.00019148,3]
[339290590,1727441439258,-24684.400444,0.00019148,3]
[339290592,1727441439268,-309.20853301,0.00019157,2]
[339290593,1727441439277,-151.0,0.00019158,2]
[339290596,1727441439287,-244.740292,0.00019158,2]
[339290598,1727441439297,-244.740292,0.00019158,2]
[339290600,1727441439307,-388.2669,0.00019158,2]
[339290601,1727441439316,-388.2669,0.00019158,2]
[339290603,1727441439326,-151.0,0.00019158,2]
[339290606,1727441439336,-272.557229,0.00019158,2]
[339290608,1727441439347,-272.557229,0.00019158,2]
[339290610,1727441439355,-531.847437,0.00019158,2]
[339290612,1727441439366,-531.847437,0.00019158,2]
[339290614,1727441439376,-256.861246,0.00019158,2]
[339290616,1727441439387,-256.861246,0.00019158,2]
[339290618,1727441439399,-1819.967825,0.00019158,2]
[339290620,1727441439408,-1819.967825,0.00019158,2]
[339290622,1727441439418,-676.436587,0.00019158,2]
[339290624,1727441439430,-676.436587,0.00019158,2]
[339290626,1727441439439,-563.574286,0.00019158,2]
[339290628,1727441439449,-563.574286,0.00019158,2]
[339290630,1727441439460,-476.006498,0.00019158,2]
[339290632,1727441439469,-476.006498,0.00019158,2]
[339290634,1727441439481,-16456.2669627,0.00019158,3]
[339290636,1727441439490,-151.0,0.00019168,2]
[339290637,1727441439500,-151.0,0.00019168,2]
[339290639,1727441439511,-161.866156,0.00019168,2]
[339290641,1727441439520,-161.866156,0.00019168,2]
[339290644,1727441439532,-151.0,0.00019168,2]
[339290646,1727441439543,-151.0,0.00019168,2]
[339290648,1727441439552,-238.37174,0.00019168,2]
[339290650,1727441439561,-419.524786,0.00019168,2]
[339290652,1727441439571,-419.524786,0.00019168,2]
[339290653,1727441439581,-151.0,0.00019168,2]
[339290655,1727441439590,-995.533767,0.00019168,2]
[339290657,1727441439600,-995.533767,0.00019168,2]
[339290659,1727441439609,-151.0,0.00019168,2]
[339290661,1727441439619,-151.0,0.00019168,2]
[339290663,1727441439629,-244.740292,0.00019168,2]
[339290665,1727441439638,-244.740292,0.00019168,2]
[339290667,1727441439648,-388.2669,0.00019168,2]
[339290669,1727441439657,-388.2669,0.00019168,2]
[339290671,1727441439666,-151.0,0.00019168,2]
[339290673,1727441439676,-272.557229,0.00019168,2]
[339290675,1727441439685,-272.557229,0.00019168,2]
[339290678,1727441439695,-531.847437,0.00019168,2]
[339290681,1727441439704,-531.847437,0.00019168,2]
[339290683,1727441439715,-256.861246,0.00019168,2]
[339290685,1727441439725,-256.861246,0.00019168,2]
[339290687,1727441439736,-1819.967825,0.00019168,2]
[339290689,1727441439746,-1819.967825,0.00019168,2]
[339290691,1727441439757,-676.436587,0.00019168,2]
[339290693,1727441439766,-676.436587,0.00019168,2]
[339290695,1727441439775,-563.574286,0.00019168,2]
[339290697,1727441439785,-563.574286,0.00019168,2]
[339290700,1727441439796,-476.006498,0.00019168,2]
[339290702,1727441439806,-2000.0,0.00019168,2]
[339290704,1727441439815,-2000.0,0.00019168,2]
[339290706,1727441439824,-2000.0,0.00019168,2]
[339290708,1727441439833,-2039.328141,0.00019168,2]
[339290710,1727441439843,-476.006498,0.00019168,2]
[339290712,1727441439853,-24684.400444,0.00019168,3]
[339290714,1727441439862,-501.57713305,0.00019173,2]
[339290716,1727441439871,-500.0,0.00019173,2]
[339290718,1727441439882,-500.0,0.00019173,2]
[339290720,1727441439891,-500.0,0.00019173,2]
[339290723,1727441439901,-500.0,0.00019173,2]
[339290727,1727441439911,-500.0,0.00019173,2]
[339290729,1727441439922,-151.0,0.00019173,2]
[339290731,1727441439932,-151.0,0.00019173,2]
[339290733,1727441439942,-432.683752,0.00019173,2]
[339290735,1727441439952,-153.162631,0.00019173,2]
[339290737,1727441439962,-151.0,0.00019173,2]
[339290739,1727441439973,-151.0,0.00019173,2]
[339290741,1727441439983,-151.0,0.00019173,2]
[339290743,1727441439992,-180.09682917,0.00019173,2]
[339290745,1727441440002,-428.283914,0.00019173,2]
[339290747,1727441440011,-428.283914,0.00019173,2]
[339290749,1727441440021,-151.0,0.00019178,2]
[339290751,1727441440031,-161.972006,0.00019178,2]
[339290753,1727441440041,-151.0,0.00019178,2]
[339290755,1727441440050,-151.0,0.00019178,2]
[339290757,1727441440059,-151.0,0.00019178,2]
[339290759,1727441440070,-506.8130447,0.00019178,2]
[339290761,1727441440080,-500.0,0.00019178,2]
[339290763,1727441440090,-500.0,0.00019178,2]
[339290765,1727441440099,-500.0,0.00019178,2]
[339290767,1727441440109,-500.0,0.00019178,2]
[339290769,1727441440119,-500.0,0.00019178,2]
[339290771,1727441440128,-500.0,0.00019178,2]
[339290773,1727441440138,-587.28,0.00019178,2]
[339290775,1727441440148,-500.0,0.00019178,2]
[339290777,1727441440157,-500.0,0.00019178,2]
[339290779,1727441440168,-500.0,0.00019178,2]
[339290781,1727441440179,-500.0,0.00019178,2]
[339290783,1727441440189,-501.88949167,0.00019178,2]
[339290785,1727441440199,-500.0,0.00019178,2]
[339290787,1727441440209,-500.0,0.00019178,2]
[339290789,1727441440219,-151.0,0.00019178,2]
[339290791,1727441440230,-295.56372211,0.00019178,2]
[339290793,1727441440239,-502.72997985,0.00019178,2]
[339290795,1727441440249,-568.45217455,0.00019178,2]
[339290797,1727441440259,-500.0,0.00019178,2]
[339290799,1727441440268,-227.420615,0.00019178,2]
[339290801,1727441440278,-500.0,0.00019178,2]
[339290803,1727441440287,-500.0,0.00019178,2]
[339290805,1727441440296,-501.92014668,0.00019178,2]
[339290807,1727441440305,-500.0,0.00019178,2]
[339290808,1727441440314,-500.0,0.00019178,2]
[339290811,1727441440324,-338.39572649,0.00019178,2]
[339290813,1727441440334,-500.0,0.00019178,2]
[339290814,1727441440344,-500.0,0.00019178,2]
[339290817,1727441440353,-500.0,0.00019178,2]
[339290819,1727441440363,-161.866156,0.00019178,2]
[339290820,1727441440372,-500.0,0.00019178,2]
[339290823,1727441440383,-500.0,0.00019178,2]
[339290825,1727441440393,-500.0,0.00019178,2]
[339290827,1727441440402,-161.866156,0.00019178,2]
[339290829,1727441440413,-500.0,0.00019178,2]
[339290831,1727441440423,-500.0,0.00019178,2]
[339290833,1727441440434,-506.82071934,0.00019178,2]
[339290835,1727441440444,-514.7598748,0.00019178,2]
[339290837,1727441440455,-500.0,0.00019178,2]
[339290839,1727441440464,-151.0,0.00019178,2]
[339290841,1727441440474,-225.103157,0.00019178,2]
[339290843,1727441440485,-507.21,0.00019178,2]
[339290844,1727441440497,-500.0,0.00019178,2]
[339290846,1727441440511,-500.0,0.00019178,2]
[339290848,1727441440521,-500.0,0.00019178,2]
[339290849,1727441440530,-508.20380946,0.00019178,2]
[339290851,1727441440540,-500.0,0.00019178,2]
[339290853,1727441440551,-500.0,0.00019178,2]
[339290855,1727441440561,-500.0,0.00019178,2]
[339290857,1727441440571,-512.31092145,0.00019178,2]
[339290860,1727441440582,-500.0,0.00019178,2]
[339290862,1727441440594,-502.60955855,0.00019178,2]
[339290864,1727441440603,-500.0,0.00019178,2]
[339290866,1727441440612,-500.0,0.00019178,2]
[339290868,1727441440623,-505.41382347,0.00019178,2]
[339290870,1727441440633,-500.0,0.00019178,2]
[339290872,1727441440642,-151.0,0.00019178,2]
[339290874,1727441440652,-501.56027801,0.00019178,2]
[339290876,1727441440662,-500.0,0.00019178,2]
[339290878,1727441440672,-504.44823372,0.00019178,2]
[339290879,1727441440681,-501.43036245,0.00019178,2]
[339290881,1727441440690,-500.0,0.00019178,2]
[339290883,1727441440699,-505.75552311,0.00019178,2]
[339290885,1727441440708,-500.0,0.00019178,2]
[339290887,1727441440718,-502.13907144,0.00019178,2]
[339290889,1727441440727,-506.5671775,0.00019178,2]
[339290891,1727441440737,-512.39467647,0.00019178,2]
[339290893,1727441440746,-502.37530805,0.00019178,2]
[339290895,1727441440756,-501.46636451,0.00019178,2]
[339290897,1727441440765,-500.0,0.00019178,2]
[339290899,1727441440775,-507.78287653,0.00019178,2]
[339290901,1727441440785,-506.78731645,0.00019178,2]
[339290915,1727441440903,-505.7320297,0.00019178,2]
[339290917,1727441440913,-503.73732409,0.00019178,2]
[339290919,1727441440923,-621.71854752,0.00019178,2]
[339290921,1727441440933,-500.0,0.00019178,2]
[339290923,1727441440943,-502.4963223,0.00019178,2]
[339290925,1727441440952,-507.33275191,0.00019178,2]
[339290927,1727441440962,-517.85197249,0.00019178,2]
[339290929,1727441440972,-518.11206169,0.00019178,2]
[339290931,1727441440981,-623.12,0.00019178,2]
[339290933,1727441440990,-500.0,0.00019178,2]
[339290935,1727441440999,-500.0,0.00019178,2]
[339290937,1727441441008,-500.0,0.00019178,2]
[339290939,1727441441018,-500.0,0.00019178,2]
[339290941,1727441441027,-500.0,0.00019178,2]
[339290943,1727441441037,-891.26,0.00019178,2]
[339290945,1727441441046,-502.46784363,0.00019178,2]
[339290946,1727441441055,-500.0,0.00019178,2]
[339290948,1727441441065,-500.0,0.00019178,2]
[339290951,1727441441075,-500.92255171,0.00019178,2]
[339290953,1727441441084,-500.0,0.00019178,2]
[339290955,1727441441094,-500.0,0.00019178,2]
[339290957,1727441441104,-500.0,0.00019178,2]
[339290959,1727441441113,-500.0,0.00019178,2]
[339290961,1727441441122,-500.0,0.00019178,2]
[339290963,1727441441132,-151.0,0.00019178,2]
[339290965,1727441441142,-151.0,0.00019178,2]
[339290967,1727441441151,-502.24952686,0.00019178,2]
[339290969,1727441441161,-151.0,0.00019178,2]
[339290971,1727441441171,-500.0,0.00019178,2]
[339290973,1727441441182,-500.0,0.00019178,2]
[339290975,1727441441191,-500.0,0.00019178,2]
[339290977,1727441441202,-501.54320919,0.00019178,2]
[339290979,1727441441213,-432.683752,0.00019178,2]
[339290981,1727441441223,-500.0,0.00019178,2]
[339290983,1727441441233,-500.0,0.00019178,2]
[339290985,1727441441242,-500.0,0.00019178,2]
[339290987,1727441441252,-500.0,0.00019178,2]
[339290989,1727441441262,-500.0,0.00019178,2]
[339290991,1727441441272,-500.0,0.00019178,2]
[339290993,1727441441282,-238.37174,0.00019178,2]
[339290995,1727441441292,-500.0,0.00019178,2]
[339290998,1727441441303,-151.0,0.00019178,2]
[339291000,1727441441313,-484.81701463,0.00019178,2]
[339291002,1727441441324,-317.85801977,0.00019178,2]
[339291004,1727441441333,-151.0,0.00019178,2]
[339291006,1727441441344,-500.0,0.00019178,2]
[339291008,1727441441353,-365.17829871,0.00019178,2]
[339291010,1727441441362,-388.71155085,0.00019178,2]
[339291012,1727441441371,-500.0,0.00019178,2]
[339291014,1727441441381,-537.57514377,0.00019178,2]
[339291016,1727441441391,-500.0,0.00019178,2]
[339291018,1727441441400,-500.0,0.00019178,2]
[339291020,1727441441410,-500.0,0.00019178,2]
[339291022,1727441441419,-151.0,0.00019178,2]
[339291024,1727441441429,-500.0,0.00019178,2]
[339291026,1727441441439,-500.0,0.00019178,2]
[339291028,1727441441448,-500.0,0.00019178,2]
[339291030,1727441441458,-500.0,0.00019178,2]
[339291032,1727441441467,-512.31501893,0.00019178,2]
[339291034,1727441441477,-504.69552132,0.00019178,2]
[339291036,1727441441487,-352.01920471,0.00019178,2]
[339291038,1727441441496,-500.0,0.00019178,2]
[339291040,1727441441509,-500.0,0.00019178,2]
[339291042,1727441441519,-500.0,0.00019178,2]
[339291044,1727441441528,-509.33291434,0.00019178,2]
[339291046,1727441441538,-151.0,0.00019178,2]
[339291048,1727441441548,-504.60034359,0.00019178,2]
[339291050,1727441441559,-500.0,0.00019178,2]
[339291052,1727441441569,-506.60099789,0.00019178,2]
[339291054,1727441441578,-500.0,0.00019178,2]
[339291056,1727441441588,-500.0,0.00019178,2]
[339291058,1727441441599,-500.0,0.00019178,2]
[339291060,1727441441608,-500.0,0.00019178,2]
[339291062,1727441441618,-502.86802168,0.00019178,2]
[339291064,1727441441627,-500.0,0.00019178,2]
[339291066,1727441441639,-419.524786,0.00019178,2]
[339291068,1727441441648,-500.0,0.00019178,2]
[339291070,1727441441658,-500.0,0.00019178,2]
[339291072,1727441441667,-501.30810882,0.00019178,2]
[339291075,1727441441679,-500.0,0.00019178,2]
[339291077,1727441441689,-419.524786,0.00019178,2]
[339291079,1727441441698,-500.0,0.00019178,2]
[339291081,1727441441708,-502.9151117,0.00019178,2]
[339291083,1727441441718,-500.0,0.00019178,2]
[339291084,1727441441727,-500.0,0.00019178,2]
[339291087,1727441441738,-505.33591757,0.00019178,2]
[339291089,1727441441750,-500.0,0.00019178,2]
[339291091,1727441441759,-500.0,0.00019178,2]
[339291093,1727441441770,-500.0,0.00019178,2]
[339291095,1727441441779,-500.0,0.00019178,2]
[339291097,1727441441789,-500.0,0.00019178,2]
[339291099,1727441441799,-503.3907375,0.00019178,2]
[339291101,1727441441808,-500.0,0.00019178,2]
[339291103,1727441441818,-500.0,0.00019178,2]
[339291105,1727441441827,-501.17217576,0.00019178,2]
[339291107,1727441441837,-500.0,0.00019178,2]
[339291109,1727441441846,-500.0,0.00019178,2]
[339291111,1727441441856,-513.28998254,0.00019178,2]
[339291113,1727441441865,-500.0,0.00019178,2]
[339291115,1727441441875,-512.44586229,0.00019178,2]
[339291117,1727441441885,-517.43819269,0.00019178,2]
[339291119,1727441441894,-500.0,0.00019178,2]
[339291121,1727441441904,-500.0,0.00019178,2]
[339291123,1727441441913,-530.13078266,0.00019178,2]
[339291125,1727441441922,-182.67926184,0.00019178,2]
[339291127,1727441441935,-500.0,0.00019178,2]
[339291129,1727441441945,-428.283914,0.00019178,2]
[339291131,1727441441954,-505.80502108,0.00019178,2]
[339291133,1727441441963,-508.62598827,0.00019178,2]
[339291135,1727441441975,-500.0,0.00019178,2]
[339291137,1727441441985,-1119.92,0.00019178,2]
[339291139,1727441441994,-428.283914,0.00019178,2]
[339291141,1727441442003,-500.0,0.00019178,2]
[339291143,1727441442012,-502.16235258,0.00019178,2]
[339291145,1727441442022,-328.18284378,0.00019178,2]
[339291147,1727441442031,-151.0,0.00019178,2]
[339291149,1727441442040,-500.0,0.00019178,2]
[339291151,1727441442050,-500.0,0.00019178,2]
[339291153,1727441442059,-500.0,0.00019178,2]
[339291155,1727441442071,-500.0,0.00019178,2]
[339291157,1727441442080,-166.13061778,0.00019178,2]
[339291159,1727441442089,-502.03091175,0.00019178,2]
[339291161,1727441442098,-406.8697545,0.00019178,2]
[339291163,1727441442108,-515.77743723,0.00019178,2]
[339291165,1727441442117,-502.17802652,0.00019178,2]
[339291167,1727441442126,-500.0,0.00019178,2]
[339291169,1727441442135,-526.00384797,0.00019178,2]
[339291171,1727441442144,-501.33275887,0.00019178,2]
[339291173,1727441442154,-503.52977667,0.00019178,2]
[339291175,1727441442163,-513.28879907,0.00019178,2]
[339291177,1727441442172,-511.1244436,0.00019178,2]
[339291179,1727441442185,-506.17528528,0.00019178,2]
[339291181,1727441442194,-500.0,0.00019178,2]
[339291183,1727441442203,-500.0,0.00019178,2]
[339291185,1727441442212,-504.39762484,0.00019178,2]
[339291187,1727441442222,-500.0,0.00019178,2]
[339291189,1727441442231,-500.0,0.00019178,2]
[339291191,1727441442240,-500.0,0.00019178,2]
[339291193,1727441442249,-500.0,0.00019178,2]
[339291195,1727441442258,-1326.72,0.00019178,2]
[339291197,1727441442268,-428.8454386,0.00019178,2]
[339291199,1727441442277,-500.0,0.00019178,2]
[339291201,1727441442286,-560.72730909,0.00019178,2]
[339291203,1727441442296,-995.533767,0.00019178,2]
[339291205,1727441442305,-500.0,0.00019178,2]
[339291207,1727441442314,-776.6,0.00019178,2]
[339291209,1727441442323,-995.533767,0.00019178,2]
[339291211,1727441442332,-500.0,0.00019178,2]
[339291213,1727441442341,-500.0,0.00019178,2]
[339291215,1727441442350,-508.20465973,0.00019178,2]
[339291217,1727441442360,-502.58660432,0.00019178,2]
[339291219,1727441442369,-506.99379314,0.00019178,2]
[339291221,1727441442379,-500.0,0.00019178,2]
[339291223,1727441442388,-500.0,0.00019178,2]
[339291225,1727441442397,-500.0,0.00019178,2]
[339291227,1727441442406,-558.81008031,0.00019178,2]
[339291229,1727441442416,-506.81527205,0.00019178,2]
[339291231,1727441442426,-500.0,0.00019178,2]
[339291233,1727441442436,-508.71907042,0.00019178,2]
[339291235,1727441442446,-698.115446,0.00019178,2]
[339291237,1727441442455,-500.0,0.00019178,2]
[339291239,1727441442464,-508.86443732,0.00019178,2]
[339291241,1727441442474,-698.115446,0.00019178,2]
[339291243,1727441442484,-500.0,0.00019178,2]
[339291245,1727441442493,-500.0,0.00019178,2]
[339291247,1727441442504,-532.7567702,0.00019178,2]
[339291249,1727441442515,-151.0,0.00019178,2]
[339291251,1727441442524,-500.0,0.00019178,2]
[339291253,1727441442534,-500.0,0.00019178,2]
[339291255,1727441442543,-507.75875498,0.00019178,2]
[339291257,1727441442554,-506.86488071,0.00019178,2]
[339291258,1727441442563,-507.21746871,0.00019178,2]
[339291260,1727441442572,-500.0,0.00019178,2]
[339291262,1727441442583,-500.0,0.00019178,2]
[339291264,1727441442591,-529.76406078,0.00019178,2]
[339291266,1727441442601,-504.11027069,0.00019178,2]
[339291268,1727441442610,-500.0,0.00019178,2]
[339291271,1727441442622,-502.6188564,0.00019178,2]
[339291273,1727441442631,-500.0,0.00019178,2]
[339291275,1727441442640,-503.98889023,0.00019178,2]
[339291277,1727441442649,-500.0,0.00019178,2]
[339291279,1727441442660,-500.0,0.00019178,2]
[339291280,1727441442670,-502.65573626,0.00019178,2]
[339291282,1727441442680,-500.0,0.00019178,2]
[339291284,1727441442689,-500.0,0.00019178,2]
[339291286,1727441442698,-500.0,0.00019178,2]
[339291288,1727441442708,-500.0,0.00019178,2]
[339291290,1727441442717,-500.0,0.00019178,2]
[339291292,1727441442726,-519.79375099,0.00019178,2]
[339291294,1727441442736,-500.0,0.00019178,2]
[339291296,1727441442744,-151.0,0.00019178,2]
[339291298,1727441442753,-502.30305245,0.00019178,2]
[339291300,1727441442763,-500.0,0.00019178,2]
[339291302,1727441442772,-500.0,0.00019178,2]
[339291304,1727441442781,-510.23012474,0.00019178,2]
[339291306,1727441442790,-162.713224,0.00019178,2]
[339291308,1727441442799,-508.23475484,0.00019178,2]
[339291310,1727441442808,-500.0,0.00019178,2]
[339291312,1727441442817,-508.70404606,0.00019178,2]
[339291314,1727441442826,-921.01,0.00019178,2]
[339291316,1727441442835,-505.93642412,0.00019178,2]
[339291318,1727441442844,-500.0,0.00019178,2]
[339291320,1727441442853,-200.0,0.00019178,2]
[339291321,1727441442863,-151.0,0.00019178,2]
[339291323,1727441442872,-500.0,0.00019178,2]
[339291324,1727441442881,-151.0,0.00019178,2]
[339291325,1727441442890,-151.0,0.00019178,2]
[339291326,1727441442899,-1083.43,0.00019178,2]
[339291327,1727441442908,-500.0,0.00019178,2]
[339291328,1727441442918,-500.0,0.00019178,2]
[339291329,1727441442927,-500.0,0.00019178,2]
[339291330,1727441442937,-151.0,0.00019178,2]
[339291331,1727441442946,-500.0,0.00019178,2]
[339291332,1727441442955,-504.73132709,0.00019178,2]
[339291333,1727441442965,-500.0,0.00019178,2]
[339291334,1727441442975,-845.154898,0.00019178,2]
[339291335,1727441442985,-500.0,0.00019178,2]
[339291336,1727441442994,-500.0,0.00019178,2]
[339291337,1727441443003,-261.966027,0.00019178,2]
[339291338,1727441443013,-845.154898,0.00019178,2]
[339291339,1727441443022,-511.33447525,0.00019178,2]
[339291340,1727441443031,-151.0,0.00019178,2]
[339291341,1727441443041,-500.0,0.00019178,2]
[339291342,1727441443051,-261.966027,0.00019178,2]
[339291343,1727441443060,-151.0,0.00019178,2]
[339291344,1727441443070,-500.0,0.00019178,2]
[339291346,1727441443079,-571.90341132,0.00019178,2]
[339291348,1727441443088,-500.0,0.00019178,2]
[339291350,1727441443097,-500.0,0.00019178,2]
[339291352,1727441443106,-500.0,0.00019178,2]
[339291354,1727441443115,-500.0,0.00019178,2]
[339291356,1727441443124,-500.0,0.00019178,2]
[339291358,1727441443133,-500.0,0.00019178,2]
[339291359,1727441443143,-500.0,0.00019178,2]
[339291361,1727441443152,-500.0,0.00019178,2]
[339291363,1727441443161,-208.195853,0.00019178,2]
[339291366,1727441443171,-500.0,0.00019178,2]
[339291368,1727441443183,-500.0,0.00019178,2]
[339291370,1727441443192,-500.0,0.00019178,2]
[339291372,1727441443204,-500.0,0.00019178,2]
[339291374,1727441443215,-208.195853,0.00019178,2]
[339291376,1727441443226,-151.0,0.00019178,2]
[339291378,1727441443237,-500.0,0.00019178,2]
[339291380,1727441443246,-500.0,0.00019178,2]
[339291382,1727441443255,-500.0,0.00019178,2]
[339291384,1727441443265,-503.70128654,0.00019178,2]
[339291386,1727441443274,-376.13668,0.00019178,2]
[339291388,1727441443283,-500.0,0.00019178,2]
[339291390,1727441443292,-500.0,0.00019178,2]
[339291401,1727441443399,-376.13668,0.00019178,2]
[339291403,1727441443409,-502.18747852,0.00019178,2]
[339291406,1727441443420,-500.0,0.00019178,2]
[339291408,1727441443432,-500.0,0.00019178,2]
[339291410,1727441443441,-500.0,0.00019178,2]
[339291412,1727441443451,-500.0,0.00019178,2]
[339291414,1727441443460,-500.0,0.00019178,2]
[339291416,1727441443470,-500.0,0.00019178,2]
[339291418,1727441443481,-500.0,0.00019178,2]
[339291420,1727441443491,-500.0,0.00019178,2]
[339291422,1727441443502,-506.78801205,0.00019178,2]
[339291424,1727441443514,-502.00811905,0.00019178,2]
[339291426,1727441443524,-500.0,0.00019178,2]
[339291428,1727441443533,-500.0,0.00019178,2]
[339291430,1727441443542,-500.0,0.00019178,2]